bitfinex/quotes_ETHUSD_20260108
["timestamp","ask_amount","ask_price","bid_price","bid_amount"]
[1767875223433,0.47296454,3107.0,3106.2,0.002]
[1767875223655,3.69160691,3106.9,3106.2,0.002]
[1767875223862,4.46702625,3106.9,3106.2,0.002]
[1767875224861,0.77541934,3106.9,3106.2,0.92712577]
[1767875225034,3.21858558,3107.0,3106.5,0.002]
[1767875225242,3.69155012,3107.0,3106.5,0.002]
[1767875226029,0.47296454,3106.9,3106.5,0.002]
[1767875227255,0.47296454,3107.1,3106.5,0.002]
[1767875227462,0.844,3107.3,3106.5,0.92712577]
[1767875227629,3.21802091,3107.5,3106.5,4.14611991]
[1767875227829,3.21802091,3107.5,3106.7,0.92512577]
[1767875228442,0.03113248,3107.4,3106.7,0.92512577]
[1767875228696,0.03113248,3107.4,3106.5,0.002]
[1767875228697,0.50409702,3107.4,3106.5,0.002]
[1767875229765,0.47296454,3107.2,3106.5,0.002]
[1767875229966,0.03113248,3107.1,3106.5,0.002]
[1767875231366,0.72518779,3107.1,3106.5,0.002]
[1767875232076,3.21853878,3107.0,3106.5,0.002]
[1767875232281,0.50409702,3106.9,3106.5,0.002]
[1767875233471,0.03113248,3106.9,3106.5,0.002]
[1767875234383,3.72275401,3106.9,3106.5,0.002]
[1767875234676,0.69413011,3106.8,3106.5,0.002]
[1767875234901,0.03113248,3106.7,3106.5,0.002]
[1767875235087,0.03113248,3106.8,3106.5,0.002]
[1767875235694,0.03113248,3106.9,3106.5,0.002]
[1767875236350,3.24981842,3106.9,3106.5,0.002]
[1767875237095,3.24981842,3106.9,3106.8,0.002]
[1767875237297,3.24981842,3106.9,3106.5,0.002]
[1767875237298,0.72525674,3106.9,3106.5,0.002]
[1767875237593,3.94391291,3106.9,3106.5,0.002]
[1767875238457,0.72525674,3106.9,3106.5,0.92712577]
[1767875238675,3.94390138,3106.9,3106.5,0.92712577]
[1767875239717,0.72525674,3106.9,3106.5,0.92712577]
[1767875240314,0.03113248,3106.9,3106.5,0.92712577]
[1767875240729,3.24979626,3106.9,3106.5,0.002]
[1767875240904,0.47296454,3106.8,3106.2,0.002]
[1767875241213,6.46846004,3106.9,3106.2,0.002]
[1767875241214,0.47296454,3106.6,3106.2,0.002]
[1767875241379,0.50409702,3106.8,3106.2,0.002]
[1767875241579,0.69414246,3106.7,3106.2,0.002]
[1767875241808,0.03113248,3106.6,3106.2,0.92712577]
[1767875242003,0.69414246,3106.7,3106.2,0.92712577]
[1767875242182,3.21866378,3106.9,3106.2,0.92712577]
[1767875242975,0.03113248,3106.8,3106.2,0.92712577]
[1767875243394,3.21866378,3106.9,3106.2,0.92712577]
[1767875244683,3.21781381,3107.7,3106.4,0.92512577]
[1767875244884,6.43562762,3107.7,3106.6,0.92512577]
[1767875245919,6.43562762,3107.7,3106.7,0.92512577]
[1767875246078,3.21874575,3107.8,3106.7,0.92512577]
[1767875246285,0.001,3107.8,3107.0,0.92512577]
[1767875247416,0.001,3107.8,3107.1,0.92512577]
[1767875247602,0.001,3107.8,3107.3,0.92512577]
[1767875247798,3.21873893,3107.8,3107.3,0.92512577]
[1767875248003,0.03113248,3107.7,3106.9,0.92512577]
[1767875248379,3.24895263,3107.7,3106.9,0.92512577]
[1767875248604,3.72191717,3107.7,3106.9,0.92512577]
[1767875249204,4.41598167,3107.7,3106.9,0.92512577]
[1767875249818,0.001,3107.5,3106.9,0.92512577]
[1767875251409,0.001,3107.5,3107.0,0.92512577]
[1767875253310,0.001,3107.5,3107.0,4.14366201]
[1767875253527,0.001,3107.5,3107.1,0.99328437]
[1767875253731,0.001,3107.5,3107.2,1.41446643]
[1767875253939,0.001,3107.5,3107.3,0.99328437]
[1767875259139,0.001,3107.5,3106.9,0.99328437]
[1767875259339,0.001,3107.5,3107.1,0.99328437]
[1767875261442,0.001,3107.5,3107.2,0.99328437]
[1767875261647,0.001,3107.5,3107.3,0.99328437]
[1767875263322,0.001,3107.2,3107.1,0.99328437]
[1767875263520,0.001,3107.5,3107.1,0.99328437]
[1767875269576,0.001,3107.5,3106.5,3.22102966]
[1767875269577,0.47396454,3107.5,3106.5,0.99528437]
[1767875269757,0.47296454,3107.3,3106.6,0.99328437]
[1767875269949,0.47296454,3107.3,3106.7,0.99328437]
[1767875270267,3.69203307,3107.5,3106.7,0.99328437]
[1767875270468,0.47396454,3107.5,3106.7,1.02547286]
[1767875270866,3.69199354,3107.5,3106.7,1.02547286]
[1767875271170,3.69199354,3107.5,3106.7,0.99328437]
[1767875271465,0.47296454,3107.4,3106.7,0.99328437]
[1767875271837,0.50409702,3107.4,3106.7,0.99328437]
[1767875272070,3.72226848,3107.4,3106.7,0.99328437]
[1767875272565,0.47296454,3107.3,3106.7,0.99328437]
[1767875274882,0.03113248,3107.4,3106.7,0.99328437]
[1767875275247,0.03113248,3107.4,3107.0,0.002]
[1767875275453,0.69411542,3107.4,3107.0,0.002]
[1767875275656,3.72312371,3107.5,3107.0,0.002]
[1767875276066,0.47396454,3107.5,3107.0,0.002]
[1767875276344,0.001,3107.5,3107.0,0.99528437]
[1767875276980,0.47396454,3107.5,3107.0,0.002]
[1767875277275,0.03113248,3107.4,3107.0,0.002]
[1767875278638,0.47396454,3107.5,3107.0,0.002]
[1767875278639,0.50509702,3107.5,3107.0,0.002]
[1767875278848,0.47396454,3107.5,3107.0,0.002]
[1767875279268,3.69200501,3107.5,3107.0,0.002]
[1767875279473,3.72313749,3107.5,3107.0,0.002]
[1767875279671,0.50509702,3107.5,3107.0,0.002]
[1767875279875,0.03213248,3107.5,3107.0,0.99528437]
[1767875280074,0.001,3107.5,3107.0,0.99528437]
[1767875280293,3.394,3108.7,3107.5,0.99328437]
[1767875280294,0.47296454,3108.5,3107.5,0.99328437]
[1767875280582,0.47296454,3108.5,3107.0,0.42661998]
[1767875280583,0.47296454,3108.5,3107.6,0.99328437]
[1767875280791,0.844,3108.8,3107.2,0.99328437]
[1767875280792,0.47417053,3108.3,3107.2,0.99328437]
[1767875280973,0.47417053,3108.1,3107.2,0.99328437]
[1767875281285,0.47417053,3107.9,3107.0,0.002]
[1767875281456,0.47417053,3107.7,3107.0,0.002]
[1767875281793,0.844,3108.2,3107.0,0.002]
[1767875281794,0.47417053,3107.5,3107.0,0.002]
[1767875281962,0.03113248,3107.4,3107.0,0.002]
[1767875283785,4.09584424,3107.4,3106.8,0.99328437]
[1767875283988,0.47417053,3107.3,3106.6,0.92537436]
[1767875284189,0.03113248,3107.2,3106.6,0.92537436]
[1767875285686,0.03113248,3107.3,3106.6,0.92537436]
[1767875286015,0.03113248,3107.3,3106.6,0.002]
[1767875286016,0.47417053,3107.2,3106.6,0.002]
[1767875286208,0.50530301,3107.1,3106.6,0.002]
[1767875286801,0.50530301,3107.1,3106.5,0.002]
[1767875287692,3.69270931,3107.0,3106.5,0.002]
[1767875288419,0.47417053,3107.0,3106.5,0.002]
[1767875288618,0.55835257,3106.8,3106.2,0.002]
[1767875288788,0.55835257,3106.8,3106.1,0.002]
[1767875288986,0.55835257,3106.8,3106.1,0.92537436]
[1767875289200,0.55835257,3106.8,3106.6,0.002]
[1767875289517,3.21884958,3106.7,3106.1,0.92537436]
[1767875289710,0.37772021,3106.6,3106.1,0.92537436]
[1767875290423,0.55835257,3106.5,3106.1,0.002]
[1767875290624,0.37772021,3106.6,3106.1,0.002]
[1767875292025,0.37772021,3106.6,3106.1,0.92537436]
[1767875292947,0.37772021,3106.6,3105.5,0.92337436]
[1767875292948,0.55835257,3106.5,3105.5,0.92337436]
[1767875293145,0.55835257,3106.4,3105.5,0.92337436]
[1767875294346,3.21926407,3106.3,3105.5,0.92337436]
[1767875295714,3.77761664,3106.3,3105.5,0.92337436]
[1767875296141,0.55835257,3106.2,3105.5,0.92337436]
[1767875296342,0.37776166,3106.1,3105.5,0.92337436]
[1767875297343,0.55835257,3106.0,3105.4,0.002]
[1767875297510,0.55835257,3106.0,3105.2,0.92537436]
[1767875297714,0.55835257,3106.0,3105.2,0.002]
[1767875298338,0.55835257,3105.8,3104.8,0.92537436]
[1767875298539,0.55835257,3105.6,3104.8,0.92537436]
[1767875299556,1.40335257,3105.6,3104.9,0.92537436]
[1767875299738,0.55835257,3105.5,3104.9,0.002]
[1767875300334,0.55835257,3105.5,3103.5,0.002]
[1767875300335,0.55835257,3105.3,3103.5,0.002]
[1767875300535,0.55835257,3105.3,3104.2,0.92537436]
[1767875300758,0.95483766,3105.1,3103.7,0.92337436]
[1767875300956,0.95483766,3104.9,3103.7,0.92337436]
[1767875302148,0.95483766,3104.9,3103.5,0.92537436]
[1767875302454,0.95483766,3104.7,3103.6,0.002]
[1767875304336,0.95483766,3104.7,3103.9,0.92537436]
[1767875304559,0.95483766,3104.6,3103.9,0.002]
[1767875304953,0.95483766,3104.5,3103.9,0.002]
[1767875306765,0.73966843,3104.6,3103.9,0.92537436]
[1767875309138,1.69450609,3104.6,3103.9,0.92537436]
[1767875309443,0.03113248,3104.8,3103.9,0.92537436]
[1767875309444,0.95483766,3104.7,3103.9,0.92537436]
[1767875309643,4.17566852,3104.8,3104.0,0.92337436]
[1767875309865,0.03113248,3104.7,3104.0,0.92337436]
[1767875310958,3.25215068,3104.7,3104.0,0.92337436]
[1767875311171,0.42069883,3104.6,3104.0,0.92337436]
[1767875311377,0.03113248,3104.5,3104.0,0.92337436]
[1767875312034,0.95483766,3105.0,3104.1,0.95558981]
[1767875312236,7.35722814,3105.2,3104.1,0.92337436]
[1767875312437,0.82022281,3105.1,3104.2,0.93684634]
[1767875312856,1.73664199,3105.1,3104.2,0.93684634]
[1767875313057,3.22061191,3105.0,3104.2,0.93684634]
[1767875313880,3.22061191,3105.0,3104.2,0.93884634]
[1767875314084,4.98179182,3105.3,3104.3,0.93684634]
[1767875314289,4.98179182,3105.3,3104.5,0.93684634]
[1767875314596,0.94755166,3105.2,3104.2,0.002]
[1767875315257,0.91641918,3105.0,3104.2,0.93884634]
[1767875315463,0.03113248,3104.9,3104.2,0.93884634]
[1767875315669,0.76998928,3104.9,3104.2,0.93884634]
[1767875316088,1.68640846,3104.9,3104.2,0.93884634]
[1767875317289,1.65527598,3104.9,3104.2,4.16027988]
[1767875317657,3.2517466,3105.0,3104.2,0.93884634]
[1767875318089,4.16816578,3105.0,3104.2,0.93884634]
[1767875320287,0.94755166,3105.0,3104.3,0.93684634]
[1767875320474,4.13704164,3105.0,3104.3,0.93684634]
[1767875321260,4.06502512,3105.6,3104.5,0.93684634]
[1767875321261,0.91641918,3105.4,3104.5,0.93684634]
[1767875321475,3.22009338,3105.5,3104.3,0.41603373]
[1767875321476,3.22009338,3105.5,3104.7,0.93684634]
[1767875321818,3.21988601,3105.7,3105.1,0.93684634]
[1767875322014,7.3561912,3105.7,3104.8,0.93684634]
[1767875322503,0.91641918,3105.7,3104.9,0.93684634]
[1767875322708,0.03113248,3105.6,3105.0,0.93684634]
[1767875324877,0.94755166,3105.6,3105.0,0.93684634]
[1767875325075,0.03113248,3105.6,3105.1,0.93684634]
[1767875325279,4.13623501,3105.8,3105.1,0.93684634]
[1767875325501,0.03113248,3105.7,3105.1,0.93684634]
[1767875325832,3.21947136,3106.1,3105.2,0.93684634]
[1767875326123,0.03113248,3106.0,3105.2,0.93684634]
[1767875326478,0.94755166,3106.0,3105.2,0.93684634]
[1767875327420,0.845,3106.2,3105.3,0.93684634]
[1767875327780,0.91641918,3106.3,3105.3,0.93684634]
[1767875327997,0.03113248,3106.4,3105.6,0.93684634]
[1767875329820,0.03113248,3106.5,3105.6,0.93684634]
[1767875330119,0.94755166,3106.5,3105.7,0.93684634]
[1767875330622,0.91641918,3106.5,3105.7,0.93684634]
[1767875330792,4.95551549,3106.5,3105.7,0.93684634]
[1767875331290,0.03113248,3106.4,3105.7,0.93684634]
[1767875332593,1.73645424,3106.5,3105.8,0.93684634]
[1767875333030,4.95551687,3106.5,3105.8,0.93684634]
[1767875333230,1.73645424,3106.5,3105.8,0.93684634]
[1767875333390,0.03113248,3106.4,3105.8,0.93684634]
[1767875334223,0.94755166,3106.4,3105.8,0.93684634]
[1767875334737,4.16674726,3106.4,3105.8,0.93684634]
[1767875335322,0.94755166,3106.4,3105.8,0.93684634]
[1767875337822,0.001,3106.2,3105.8,0.93684634]
[1767875339019,0.001,3106.2,3105.9,0.93684634]
[1767875342605,0.001,3106.2,3105.6,0.92974723]
[1767875342924,0.9093935,3106.2,3105.6,4.56470762]
[1767875343233,0.001,3106.2,3105.7,0.92974723]
[1767875344309,0.001,3106.7,3106.2,0.94959252]
[1767875345614,0.001,3106.7,3106.3,0.94959252]
[1767875348154,0.001,3106.7,3106.4,0.94959252]
[1767875348327,0.001,3106.7,3106.1,0.94959252]
[1767875348528,0.001,3106.7,3106.2,0.94959252]
[1767875348916,0.03213248,3106.7,3106.2,0.94959252]
[1767875349130,1.00139666,3106.7,3106.0,0.94959252]
[1767875349348,0.001,3106.4,3106.0,4.16911049]
[1767875349748,0.001,3106.4,3106.1,0.94959252]
[1767875351654,0.001,3106.4,3106.1,4.16904708]
[1767875352329,0.001,3106.4,3106.2,0.94959252]
[1767875354624,0.001,3106.4,3105.9,0.844]
[1767875354944,0.001,3106.4,3106.1,3.2194669]
[1767875355449,0.001,3106.4,3106.0,4.16915689]
[1767875356755,0.001,3106.4,3106.1,3.21946822]
[1767875358256,0.001,3106.4,3106.0,0.94959252]
[1767875358257,0.001,3106.4,3106.0,4.16915091]
[1767875360055,0.001,3106.4,3106.1,0.94959252]
[1767875360848,0.001,3106.4,3106.2,3.21936771]
[1767875361536,0.001,3106.4,3106.1,4.16904856]
[1767875362938,0.001,3106.4,3106.1,0.94959252]
[1767875363149,0.97026418,3106.4,3105.6,0.03219989]
[1767875363371,0.97026418,3106.4,3105.8,3.21973249]
[1767875363536,0.97026418,3106.4,3105.9,3.21967327]
[1767875363738,0.001,3106.4,3106.0,3.2195732]
[1767875364291,0.001,3106.4,3106.1,0.94959252]
[1767875366266,0.97026418,3106.4,3105.8,0.94959252]
[1767875366571,0.97026418,3106.4,3105.8,1.12895177]
[1767875366778,0.001,3106.4,3105.9,4.16925787]
[1767875368940,0.001,3106.4,3106.0,0.94959252]
[1767875372856,0.97472324,3106.4,3105.8,4.37436161]
[1767875373056,0.97472324,3106.4,3105.9,3.21966913]
[1767875373657,0.001,3106.4,3105.9,4.19495968]
[1767875374355,0.001,3106.4,3106.0,3.21955963]
[1767875374774,0.001,3106.4,3106.0,4.19485018]
[1767875374974,0.001,3106.4,3106.1,0.97529055]
[1767875379013,0.001,3106.4,3105.9,0.97529055]
[1767875379196,0.001,3106.4,3105.8,3.21978154]
[1767875379197,0.97472324,3106.4,3105.7,5.03912524]
[1767875380001,0.97472324,3106.4,3105.8,0.97529055]
[1767875380399,0.97472324,3106.4,3105.8,1.81929055]
[1767875381396,0.97472324,3106.4,3105.8,5.03898487]
[1767875384695,0.001,3106.4,3105.9,0.97529055]
[1767875384902,0.001,3106.4,3106.1,0.002]
[1767875386713,0.97472324,3106.4,3106.1,0.002]
[1767875390517,0.001,3106.4,3106.1,0.002]
[1767875398504,0.97472324,3106.4,3106.1,0.002]
[1767875402136,0.001,3106.4,3106.1,0.002]
[1767875403115,0.001,3106.4,3106.1,0.9895501]
[1767875403321,0.90937685,3107.0,3106.4,0.9875501]
[1767875403491,0.90937685,3107.0,3106.3,2.90563827]
[1767875403688,0.94324701,3106.9,3106.1,2.15191663]
[1767875404216,0.91211453,3106.9,3106.1,0.002]
[1767875404396,0.94324701,3106.9,3106.1,0.002]
[1767875405520,0.91211453,3106.7,3106.1,0.002]
[1767875405824,0.91211453,3106.5,3106.1,0.002]
[1767875405994,6.43749194,3106.8,3106.1,0.002]
[1767875405995,0.91211453,3106.3,3106.1,0.002]
[1767875406331,0.91211453,3106.3,3105.8,0.002]
[1767875406624,0.91211453,3106.1,3105.8,0.002]
[1767875406788,0.91211453,3105.9,3105.0,0.91639779]
[1767875407189,0.91211453,3105.9,3105.1,3.22043906]
[1767875407423,0.91211453,3105.9,3105.1,4.13683685]
[1767875407926,0.91211453,3105.7,3104.9,0.91639779]
[1767875408120,0.91211453,3105.6,3104.9,3.22071118]
[1767875408420,0.91211453,3105.6,3105.0,7.38982517]
[1767875408628,0.91211453,3105.6,3105.1,0.91639779]
[1767875408825,4.13146253,3106.3,3105.4,0.91639779]
[1767875409121,4.13146253,3106.3,3105.3,2.90563827]
[1767875409122,0.91211453,3106.1,3105.3,2.90563827]
[1767875409321,0.91211453,3105.9,3105.3,0.91639779]
[1767875409523,0.91211453,3105.9,3105.2,3.22039664]
[1767875409824,0.91211453,3105.7,3105.0,4.98100239]
[1767875410035,0.91211453,3105.7,3105.1,4.13689911]
[1767875410341,0.91211453,3106.4,3105.3,0.91639779]
[1767875410637,0.91211453,3106.2,3105.1,4.13686407]
[1767875410838,0.91211453,3106.0,3105.3,0.91639779]
[1767875411124,0.2997396,3105.9,3105.3,0.91639779]
[1767875411306,0.91211453,3106.0,3105.3,0.91639779]
[1767875411506,0.71284824,3105.9,3105.3,0.91639779]
[1767875411709,0.41315939,3105.9,3105.3,0.91639779]
[1767875411926,0.41315939,3105.9,3105.3,4.13664723]
[1767875412115,0.91211453,3106.0,3105.3,0.91639779]
[1767875412323,1.21176933,3105.9,3105.3,0.91639779]
[1767875412613,0.91211453,3105.9,3105.3,0.91639779]
[1767875414701,0.91211453,3105.9,3105.4,0.03220197]
[1767875414902,0.91211453,3105.9,3105.3,0.91639779]
[1767875415113,1.32527398,3105.9,3105.3,0.91639779]
[1767875415637,0.91211453,3105.8,3105.3,4.136683]
[1767875415799,0.91211453,3105.8,3105.3,0.91639779]
[1767875416244,0.91211453,3105.8,3105.3,4.13666475]
[1767875416549,0.91211453,3105.8,3105.3,0.91639779]
[1767875416853,0.91211453,3105.8,3105.2,3.2203639]
[1767875417144,0.91211453,3105.8,3105.1,3.2204571]
[1767875417306,0.91211453,3105.7,3105.0,4.66603606]
[1767875417505,0.91211453,3105.7,3105.0,7.88656929]
[1767875417924,0.91211453,3105.7,3105.1,3.22048294]
[1767875418137,0.91211453,3105.7,3105.1,3.22050819]
[1767875418427,0.91211453,3105.9,3105.2,0.91639779]
[1767875418630,0.91211453,3106.1,3105.4,3.82203606]
[1767875418832,0.2994791,3106.0,3105.5,0.91639779]
[1767875421316,0.001,3105.8,3105.5,0.91639779]
[1767875421530,0.001,3105.8,3105.5,4.13646495]
[1767875421939,0.91211453,3106.4,3105.7,3.82203606]
[1767875422130,1.75811453,3106.6,3105.9,3.82203606]
[1767875422334,1.21167186,3106.5,3105.9,3.82203606]
[1767875422509,0.29955733,3106.4,3105.9,3.82203606]
[1767875422714,0.91211453,3106.5,3105.9,3.82203606]
[1767875422937,0.2995558,3106.4,3105.9,0.91639779]
[1767875423139,0.001,3106.6,3106.1,3.82203606]
[1767875423372,0.001,3106.6,3106.1,0.91639779]
[1767875423878,0.94424701,3106.6,3105.9,7.04168427]
[1767875424378,0.94424701,3106.6,3106.0,0.91639779]
[1767875424730,0.94424701,3106.6,3106.0,4.13596363]
[1767875424931,0.94424701,3106.6,3106.0,0.91639779]
[1767875425330,0.94424701,3106.6,3105.8,3.21973701]
[1767875425331,0.94424701,3106.6,3105.8,4.1361348]
[1767875427964,0.91211453,3106.4,3105.2,0.002]
[1767875428141,6.43895706,3106.6,3105.2,0.002]
[1767875428142,0.91211453,3106.2,3105.2,0.002]
[1767875428346,10.50296093,3106.6,3105.2,0.002]
[1767875428347,0.91211453,3106.0,3105.2,0.002]
[1767875428541,0.91211453,3105.8,3105.2,0.002]
[1767875429264,3.21908202,3106.5,3105.2,0.002]
[1767875429265,0.91211453,3107.5,3106.0,0.91639779]
[1767875429446,0.91211453,3107.3,3106.1,0.09887792]
[1767875429650,0.91211453,3107.1,3106.1,0.09887792]
[1767875429956,0.91211453,3106.9,3106.1,0.09887792]
[1767875430152,0.91211453,3106.7,3106.1,0.09887792]
[1767875430577,0.91211453,3106.5,3106.1,0.09887792]
[1767875430865,0.91211453,3106.3,3105.4,0.844]
[1767875431069,0.91211453,3106.3,3105.4,4.06416123]
[1767875431679,0.91211453,3106.3,3105.5,3.22008063]
[1767875432239,0.91211453,3106.3,3105.4,4.06413691]
[1767875432443,0.91211453,3106.3,3105.4,0.844]
[1767875432870,0.91211453,3106.3,3105.5,3.22005303]
[1767875433044,0.91949262,3106.1,3105.5,3.22005303]
[1767875433473,0.91949262,3106.1,3105.4,4.06415248]
[1767875434473,0.91949262,3106.1,3105.5,2.90563827]
[1767875434849,0.001,3106.4,3105.9,2.90563827]
[1767875435169,0.91949262,3107.1,3106.3,2.90563827]
[1767875435340,7.28173375,3107.2,3106.1,3.89045631]
[1767875435341,0.91949262,3106.9,3106.1,3.89045631]
[1767875435542,0.91949262,3106.7,3105.9,3.89045631]
[1767875435866,1.21895521,3106.6,3106.0,0.844]
[1767875436049,0.91949262,3106.6,3106.1,2.90563827]
[1767875437868,0.91949262,3106.6,3106.1,6.12507244]
[1767875438374,0.91949262,3106.6,3106.3,2.90563827]
[1767875438570,0.91949262,3107.0,3106.5,2.90563827]
[1767875438773,0.2994303,3106.9,3106.3,2.90563827]
[1767875438963,0.2994303,3106.8,3106.3,2.90563827]
[1767875439162,0.91949262,3107.0,3106.3,2.90563827]
[1767875439355,0.845,3107.7,3106.3,2.90563827]
[1767875439356,1.21887611,3106.9,3106.3,2.90563827]
[1767875439558,1.21887611,3106.8,3106.3,2.90563827]
[1767875439752,0.91949262,3106.8,3106.1,3.21942004]
[1767875440079,0.91949262,3106.8,3106.1,4.06342004]
[1767875440578,0.91949262,3106.8,3106.2,3.21935997]
[1767875440777,0.91949262,3106.8,3106.3,3.21919381]
[1767875440976,0.91949262,3106.8,3106.2,3.21931479]
[1767875441280,0.91949262,3107.1,3106.3,3.21922919]
[1767875441454,6.43583472,3107.6,3106.3,4.20404723]
[1767875441455,1.21882306,3107.0,3106.3,4.20404723]
[1767875441661,0.29933032,3106.9,3106.3,4.20404723]
[1767875441862,0.91949262,3107.0,3106.3,4.20404723]
[1767875442069,0.29933161,3106.9,3106.3,4.20404723]
[1767875442273,0.91949262,3107.0,3106.3,4.20404723]
[1767875442474,0.29931277,3106.9,3106.5,0.98481804]
[1767875442677,0.91949262,3107.3,3106.5,0.98481804]
[1767875442854,0.29931192,3107.2,3106.5,0.98481804]
[1767875443177,0.29931192,3107.1,3106.5,0.98481804]
[1767875443347,4.13778743,3107.3,3106.5,0.98481804]
[1767875443348,0.29931192,3107.0,3106.5,0.98481804]
[1767875443548,0.29931192,3106.9,3106.5,0.98481804]
[1767875443752,0.91949262,3107.4,3106.6,3.89045631]
[1767875444053,0.91949262,3107.2,3106.6,0.98481804]
[1767875444255,0.29930134,3107.1,3106.6,0.98481804]
[1767875444455,0.91949262,3107.2,3106.6,0.98481804]
[1767875444760,0.29927657,3107.1,3106.5,5.04784759]
[1767875444964,0.4865655,3107.3,3106.7,0.98481804]
[1767875445159,0.29928291,3107.2,3106.7,0.98481804]
[1767875445350,0.91949262,3107.4,3106.7,0.98481804]
[1767875445351,0.91949262,3107.4,3106.7,4.2036389]
[1767875445555,0.29925484,3107.3,3106.7,4.2036389]
[1767875445755,0.29925484,3107.2,3106.7,4.2036389]
[1767875445981,0.91949262,3107.4,3106.7,4.2036389]
[1767875446179,0.2992556,3107.3,3106.7,4.2036389]
[1767875446480,0.2992556,3107.2,3106.7,4.2036389]
[1767875446688,0.91949262,3107.4,3106.7,4.2036389]
[1767875446978,0.29923677,3107.3,3106.7,0.98481804]
[1767875447168,1.21872939,3107.2,3106.6,4.20369788]
[1767875447377,0.91949262,3107.2,3106.6,4.20377103]
[1767875448081,1.24130047,3107.4,3106.6,4.20377103]
[1767875448389,0.29924058,3107.3,3106.7,0.98481804]
[1767875448685,0.29924058,3107.2,3106.7,0.98481804]
[1767875448885,1.24130047,3107.4,3106.7,0.98481804]
[1767875449117,0.7451789,3107.3,3106.7,0.98481804]
[1767875449285,0.29924047,3107.2,3106.7,0.98481804]
[1767875449456,0.91949262,3107.4,3106.7,0.98481804]
[1767875449662,0.2992554,3107.3,3106.7,0.98481804]
[1767875449862,0.2992554,3107.2,3106.7,0.98481804]
[1767875450162,0.91949262,3107.4,3106.7,4.20362795]
[1767875450378,0.29927327,3107.3,3106.7,4.20362795]
[1767875450574,4.06281716,3107.7,3106.7,4.20362795]
[1767875450575,0.29927327,3107.2,3106.8,0.98481804]
[1767875450778,1.76449262,3107.7,3106.8,0.98481804]
[1767875450972,1.71701114,3107.6,3106.8,0.98481804]
[1767875451178,1.2187829,3107.5,3106.8,0.98481804]
[1767875451486,0.29929028,3107.4,3106.8,0.98481804]
[1767875451671,0.91949262,3107.5,3106.9,0.98481804]
[1767875451858,0.29928272,3107.4,3106.9,0.98481804]
[1767875452058,0.17170036,3107.4,3106.9,0.98481804]
[1767875454991,0.16970037,3107.4,3106.9,0.98481804]
[1767875457465,0.001,3107.1,3106.9,0.98481804]
[1767875457870,0.91949262,3107.9,3107.1,0.98481804]
[1767875458071,1.21864283,3107.8,3107.1,0.98481804]
[1767875458282,1.21864283,3107.7,3107.1,0.98481804]
[1767875458491,0.91949262,3107.5,3106.5,0.98481804]
[1767875458691,0.91949262,3107.3,3106.4,0.002]
[1767875458867,0.91949262,3107.1,3106.4,0.98681804]
[1767875459662,0.91949262,3108.0,3107.1,0.91949262]
[1767875459862,6.43486236,3108.1,3106.4,0.002]
[1767875459863,0.0935939,3107.1,3106.7,0.98481804]
[1767875460177,0.0935939,3107.1,3106.6,3.21891079]
[1767875460570,0.0935939,3107.1,3106.7,0.98481804]
[1767875460897,0.91949262,3107.7,3106.8,0.98481804]
[1767875461098,0.29942224,3107.6,3106.8,0.98481804]
[1767875461402,0.91949262,3107.6,3106.8,0.98481804]
[1767875461978,0.91949262,3107.9,3106.9,0.98481804]
[1767875462176,0.29940612,3107.8,3107.1,0.93575242]
[1767875462385,0.96546705,3107.6,3106.9,3.2186011]
[1767875462597,0.96546705,3107.6,3107.0,0.844]
[1767875462997,0.96346706,3107.6,3107.0,1.77975242]
[1767875463567,0.98610498,3107.9,3107.1,0.92450192]
[1767875463773,0.71989337,3107.8,3107.1,0.92450192]
[1767875464070,0.29953224,3107.7,3107.1,0.92450192]
[1767875464270,0.29953224,3107.7,3107.1,4.14290053]
[1767875464893,0.29953224,3107.7,3107.2,0.92450192]
[1767875465600,0.98610498,3108.1,3107.2,0.92450192]
[1767875465902,0.72018804,3108.0,3107.2,0.92450192]
[1767875466083,0.29984465,3107.9,3107.2,0.92450192]
[1767875466284,0.29984465,3107.8,3107.2,0.92450192]
[1767875466493,0.29984465,3107.7,3107.3,0.92450192]
[1767875466801,1.40644837,3108.0,3107.3,0.92450192]
[1767875466999,0.76224677,3107.9,3107.3,0.92450192]
[1767875467181,0.2998578,3107.8,3107.3,0.92450192]
[1767875467581,1.40644837,3108.0,3107.3,0.92450192]
[1767875467778,0.29988279,3107.9,3107.3,0.92450192]
[1767875468000,0.98610498,3108.2,3107.3,0.92450192]
[1767875468194,1.2860442,3108.1,3107.3,0.92450192]
[1767875468399,0.75027326,3108.0,3107.5,0.92450192]
[1767875468577,0.29993922,3107.9,3107.5,0.92450192]
[1767875468777,0.98610498,3108.3,3107.5,0.92450192]
[1767875468979,0.001,3107.9,3107.5,0.92450192]
[1767875470805,0.98710498,3107.9,3107.2,4.14277311]
[1767875472008,0.98710498,3107.9,3106.7,0.92450192]
[1767875472009,0.98610498,3107.7,3106.7,0.92450192]
[1767875472184,0.98610498,3107.7,3106.9,3.21858542]
[1767875472504,0.98610498,3107.7,3106.9,4.14308734]
[1767875473086,0.98610498,3107.5,3106.8,3.21872265]
[1767875473406,1.28601502,3107.4,3106.8,3.21872265]
[1767875473582,0.98610498,3107.4,3106.8,3.21872265]
[1767875473784,0.98610498,3107.4,3106.7,0.92450192]
[1767875474100,0.98610498,3107.4,3106.7,4.14328809]
[1767875475099,0.98610498,3107.4,3106.8,3.21874469]
[1767875475491,0.98610498,3107.4,3106.7,4.14331321]
[1767875475683,1.40450805,3107.4,3106.7,4.14331321]
[1767875475882,0.98410499,3107.4,3106.7,4.14331321]
[1767875476711,0.98410499,3107.4,3106.8,0.92450192]
[1767875477380,0.98410499,3107.4,3106.8,4.14315033]
[1767875478212,0.982105,3107.4,3106.8,4.14315033]
[1767875478704,0.982105,3107.4,3106.8,0.92450192]
[1767875479004,0.982105,3107.4,3106.8,4.14320503]
[1767875479912,3.21868721,3107.9,3107.2,0.94061873]
[1767875479913,0.001,3107.9,3107.2,0.94061873]
[1767875480111,0.98610498,3109.9,3108.0,1.21826929]
[1767875480411,0.98610498,3109.7,3107.7,0.92450192]
[1767875480611,0.98610498,3109.5,3108.1,0.844]
[1767875480914,0.5133936,3109.4,3108.1,0.844]
[1767875481081,0.30034827,3109.3,3108.1,0.844]
[1767875481282,0.98610498,3109.1,3108.1,1.76850192]
[1767875481477,0.98610498,3108.9,3107.6,0.92450192]
[1767875481816,0.98610498,3108.7,3107.8,0.92450192]
[1767875481983,0.98610498,3108.9,3108.1,0.92450192]
[1767875482187,0.7201415,3108.8,3108.1,0.92450192]
[1767875482388,0.29987691,3108.7,3108.1,0.92450192]